fUSD/lending_fUSD_20241221
["ID","MTS","AMOUNT","RATE_DAILY","PERIOD"]
[346200854,1734773471784,-500.0,0.0002,2]
[346200855,1734773471794,-349.95812419,0.0002,2]
[346200856,1734773471804,-500.0,0.0002,2]
[346200857,1734773471813,-500.0,0.0002,2]
[346200858,1734773471823,-500.0,0.0002,2]
[346200859,1734773471833,-500.0,0.0002,2]
[346200860,1734773471843,-618.06,0.0002,2]
[346200861,1734773471853,-500.0,0.0002,2]
[346200862,1734773471862,-500.0,0.0002,2]
[346200863,1734773471872,-500.0,0.0002,2]
[346200864,1734773471882,-543.65,0.0002,2]
[346200865,1734773471892,-500.0,0.0002,2]
[346200866,1734773471902,-556.41302889,0.0002,2]
[346200867,1734773471911,-500.0,0.0002,2]
[346200868,1734773471921,-729.77,0.0002,2]
[346200869,1734773471931,-500.0,0.0002,2]
[346200870,1734773471941,-509.26234662,0.0002,2]
[346200871,1734773471951,-500.0,0.0002,2]
[346200872,1734773471960,-500.0,0.0002,2]
[346200873,1734773471970,-500.0,0.0002,2]
[346200874,1734773471980,-500.0,0.0002,2]
[346200875,1734773471989,-834.73,0.0002,2]
[346200876,1734773472000,-498.90341197,0.0002,2]
[346200877,1734773472010,-702.21,0.0002,2]
[346200878,1734773472023,-500.0,0.0002,2]
[346200879,1734773472036,-500.0,0.0002,2]
[346200880,1734773472047,-500.0,0.0002,2]
[346200881,1734773472058,-769.61,0.0002,2]
[346200882,1734773472068,-498.90340882,0.0002,2]
[346200883,1734773472079,-500.0,0.0002,2]
[346200884,1734773472089,-500.0,0.0002,2]
[346200885,1734773472100,-500.0,0.0002,2]
[346200886,1734773472110,-201.17922917,0.0002,2]
[346200887,1734773472121,-1002.7,0.0002,2]
[346200888,1734773472130,-507.9,0.0002,2]
[346200889,1734773472141,-500.0,0.0002,2]
[346200890,1734773472150,-500.0,0.0002,2]
[346200891,1734773472162,-905.36,0.0002,2]
[346200892,1734773472397,-500.0,0.0002,2]
[346200893,1734773472407,-500.0,0.0002,2]
[346200894,1734773472417,-500.0,0.0002,2]
[346200895,1734773472426,-500.0,0.0002,2]
[346200896,1734773472436,-500.0,0.0002,2]
[346200897,1734773472446,-500.0,0.0002,2]
[346200898,1734773472455,-685.89,0.0002,2]
[346200899,1734773472465,-847.86,0.0002,2]
[346200900,1734773472474,-500.0,0.0002,2]
[346200901,1734773472483,-902.93,0.0002,2]
[346200902,1734773472493,-596.7,0.0002,2]
[346200903,1734773472503,-500.0,0.0002,2]
[346200904,1734773472512,-500.0,0.0002,2]
[346200905,1734773472525,-427.55544576,0.0002,2]
[346200906,1734773472534,-500.0,0.0002,2]
[346200907,1734773472543,-500.0,0.0002,2]
[346200908,1734773472553,-1374.67,0.0002,2]
[346200909,1734773472562,-506.13,0.0002,2]
[346200910,1734773472571,-547.02,0.0002,2]
[346200911,1734773472580,-500.0,0.0002,2]
[346200912,1734773472590,-500.0,0.0002,2]
[346200913,1734773472600,-501.73141593,0.0002,2]
[346200914,1734773472610,-247.34038699,0.0002,2]
[346200915,1734773472620,-1494.46,0.0002,2]
[346200916,1734773472629,-500.0,0.0002,2]
[346200917,1734773472640,-500.0,0.0002,2]
[346200918,1734773472649,-30810.44790523,0.0002,10]
[346200919,1734773472659,-634.46,0.0002,2]
[346200920,1734773472669,-500.0,0.0002,2]
[346200921,1734773472678,-813.36,0.0002,2]
[346200922,1734773472689,-500.0,0.0002,2]
[346200923,1734773472698,-511.97748935,0.0002,2]
[346200924,1734773472707,-1810.25,0.0002,2]
[346200925,1734773472716,-739.39,0.0002,2]
[346200926,1734773472726,-500.0,0.0002,2]
[346200927,1734773472735,-500.0,0.0002,2]
[346200928,1734773472744,-500.0,0.0002,2]
[346200929,1734773472754,-500.0,0.0002,2]
[346200930,1734773472764,-907.54,0.0002,2]
[346200931,1734773472776,-589.82,0.0002,2]
[346200932,1734773472787,-500.0,0.0002,2]
[346200933,1734773472797,-1931.15,0.0002,2]
[346200934,1734773472807,-499.999999,0.0002,2]
[346200935,1734773472816,-527.82,0.0002,2]
[346200936,1734773472825,-500.0,0.0002,2]
[346200937,1734773472834,-614.04,0.0002,2]
[346200938,1734773472843,-500.0,0.0002,2]
[346200939,1734773472854,-500.0,0.0002,2]
[346200940,1734773472864,-800.36,0.0002,2]
[346200941,1734773472873,-500.0,0.0002,2]
[346200942,1734773472883,-500.0,0.0002,2]
[346200943,1734773472892,-478.03932556,0.0002,2]
[346200944,1734773472901,-500.0,0.0002,2]
[346200945,1734773472910,-500.0,0.0002,2]
[346200946,1734773472920,-500.0,0.0002,2]
[346200947,1734773472929,-500.0,0.0002,2]
[346200948,1734773472938,-1122.34,0.0002,2]
[346200949,1734773472947,-814.04,0.0002,2]
[346200950,1734773472957,-500.0,0.0002,2]
[346200951,1734773472966,-500.0,0.0002,2]
[346200952,1734773472976,-552.47,0.0002,2]
[346200953,1734773472985,-594.91,0.0002,2]
[346200954,1734773472995,-500.0,0.0002,2]
[346200955,1734773473004,-1064.96,0.0002,2]
[346200956,1734773473014,-500.0,0.0002,2]
[346200957,1734773473024,-500.0,0.0002,2]
[346200958,1734773473034,-500.0,0.0002,2]
[346200959,1734773473044,-870.97,0.0002,2]
[346200960,1734773473054,-500.0,0.0002,2]
[346200961,1734773473064,-500.0,0.0002,2]
[346200962,1734773473074,-500.0,0.0002,2]
[346200963,1734773473084,-932.63,0.0002,2]
[346200964,1734773473094,-500.0,0.0002,2]
[346200965,1734773473103,-500.0,0.0002,2]
[346200966,1734773473113,-500.0,0.0002,2]
[346200967,1734773473123,-551.58,0.0002,2]
[346200968,1734773473132,-500.0,0.0002,2]
[346200969,1734773473142,-500.0,0.0002,2]
[346200970,1734773473152,-621.57,0.0002,2]
[346200971,1734773473161,-500.0,0.0002,2]
[346200972,1734773473171,-500.0,0.0002,2]
[346200973,1734773473181,-500.0,0.0002,2]
[346200974,1734773473190,-571.12,0.0002,2]
[346200975,1734773473199,-608.52,0.0002,2]
[346200976,1734773473209,-500.0,0.0002,2]
[346200977,1734773473218,-504.83,0.0002,2]
[346200978,1734773473229,-500.0,0.0002,2]
[346200979,1734773473239,-500.0,0.0002,2]
[346200980,1734773473249,-500.0,0.0002,2]
[346200981,1734773473259,-500.0,0.0002,2]
[346200982,1734773473271,-1533.28,0.0002,2]
[346200983,1734773473282,-500.0,0.0002,2]
[346200984,1734773473292,-515.65,0.0002,2]
[346200985,1734773473301,-500.0,0.0002,2]
[346200986,1734773473313,-500.0,0.0002,2]
[346200987,1734773473323,-500.0,0.0002,2]
[346200988,1734773473332,-510.39847248,0.0002,2]
[346200989,1734773473342,-500.0,0.0002,2]
[346200990,1734773473351,-1776.17307,0.0002,2]
[346200991,1734773473362,-500.0,0.0002,2]
[346200992,1734773473372,-687.23,0.0002,2]
[346200993,1734773473382,-500.0,0.0002,2]
[346200994,1734773473391,-668.01,0.0002,2]
[346200995,1734773473402,-500.0,0.0002,2]
[346200996,1734773473412,-500.0,0.0002,2]
[346200997,1734773473421,-500.0,0.0002,2]
[346200998,1734773473431,-528.77,0.0002,2]
[346200999,1734773473441,-784.71,0.0002,2]
[346201000,1734773473451,-500.0,0.0002,2]
[346201001,1734773473460,-500.0,0.0002,2]
[346201002,1734773473470,-500.0,0.0002,2]
[346201003,1734773473479,-500.0,0.0002,2]
[346201004,1734773473488,-500.0,0.0002,2]
[346201005,1734773473499,-1271.57,0.0002,2]
[346201006,1734773473508,-500.0,0.0002,2]
[346201007,1734773473519,-500.0,0.0002,2]
[346201008,1734773473529,-1374.17,0.0002,2]
[346201009,1734773473539,-1127.2,0.0002,2]
[346201010,1734773473549,-852.34,0.0002,2]
[346201011,1734773473559,-2741.171611,0.0002,2]
[346201012,1734773473568,-504.93,0.0002,2]
[346201013,1734773473577,-500.0,0.0002,2]
[346201014,1734773473587,-500.0,0.0002,2]
[346201015,1734773473597,-500.0,0.0002,2]
[346201016,1734773473606,-886.06,0.0002,2]
[346201017,1734773473616,-500.0,0.0002,2]
[346201018,1734773473626,-736.41,0.0002,2]
[346201019,1734773473635,-500.0,0.0002,2]
[346201020,1734773473645,-500.0,0.0002,2]
[346201021,1734773473654,-552.37,0.0002,2]
[346201022,1734773473664,-1143.79,0.0002,2]
[346201023,1734773473673,-500.0,0.0002,2]
[346201024,1734773473683,-500.0,0.0002,2]
[346201025,1734773473692,-500.0,0.0002,2]
[346201026,1734773473702,-1053.96,0.0002,2]
[346201027,1734773473711,-500.0,0.0002,2]
[346201028,1734773473721,-501.62490153,0.0002,2]
[346201029,1734773473730,-500.0,0.0002,2]
[346201030,1734773473739,-500.0,0.0002,2]
[346201031,1734773473749,-500.0,0.0002,2]
[346201032,1734773473758,-1376.42,0.0002,2]
[346201033,1734773473769,-500.0,0.0002,2]
[346201034,1734773473779,-500.0,0.0002,2]
[346201035,1734773473789,-500.0,0.0002,2]
[346201036,1734773473798,-500.0,0.0002,2]
[346201037,1734773473808,-500.0,0.0002,2]
[346201038,1734773473817,-599.42,0.0002,2]
[346201039,1734773473827,-500.0,0.0002,2]
[346201040,1734773473836,-500.0,0.0002,2]
[346201041,1734773473846,-781.07,0.0002,2]
[346201042,1734773473857,-500.0,0.0002,2]
[346201043,1734773473867,-500.0,0.0002,2]
[346201044,1734773473877,-748.53,0.0002,2]
[346201045,1734773473886,-500.0,0.0002,2]
[346201046,1734773473896,-500.0,0.0002,2]
[346201047,1734773473906,-500.0,0.0002,2]
[346201048,1734773473916,-500.0,0.0002,2]
[346201049,1734773473925,-500.0,0.0002,2]
[346201050,1734773473935,-755.41,0.0002,2]
[346201051,1734773473945,-500.0,0.0002,2]
[346201052,1734773473954,-500.0,0.0002,2]
[346201053,1734773473964,-559.95,0.0002,2]
[346201054,1734773473975,-500.0,0.0002,2]
[346201055,1734773473985,-1490.75,0.0002,2]
[346201056,1734773473994,-500.0,0.0002,2]
[346201057,1734773474004,-500.0,0.0002,2]
[346201058,1734773474014,-500.0,0.0002,2]
[346201059,1734773474025,-500.0,0.0002,2]
[346201060,1734773474035,-500.0,0.0002,2]
[346201061,1734773474044,-500.0,0.0002,2]
[346201062,1734773474055,-687.98,0.0002,2]
[346201063,1734773474065,-500.0,0.0002,2]
[346201064,1734773474075,-500.0,0.0002,2]
[346201065,1734773474084,-500.0,0.0002,2]
[346201066,1734773474093,-500.0,0.0002,2]
[346201067,1734773474103,-656.36,0.0002,2]
[346201068,1734773474113,-500.0,0.0002,2]
[346201069,1734773474122,-500.0,0.0002,2]
[346201070,1734773474132,-668.09,0.0002,2]
[346201071,1734773474143,-500.0,0.0002,2]
[346201072,1734773474152,-1005.06,0.0002,2]
[346201073,1734773474162,-500.0,0.0002,2]
[346201074,1734773474172,-500.0,0.0002,2]
[346201075,1734773474181,-500.0,0.0002,2]
[346201076,1734773474190,-853.8,0.0002,2]
[346201077,1734773474199,-500.0,0.0002,2]
[346201078,1734773474209,-500.0,0.0002,2]
[346201079,1734773474219,-806.29,0.0002,2]
[346201080,1734773474231,-1139.76,0.0002,2]
[346201081,1734773474243,-543.54,0.0002,2]
[346201082,1734773474253,-500.0,0.0002,2]
[346201083,1734773474262,-602.77,0.0002,2]
[346201084,1734773474275,-500.0,0.0002,2]
[346201085,1734773474287,-845.78,0.0002,2]
[346201086,1734773474297,-500.0,0.0002,2]
[346201087,1734773474307,-1302.53,0.0002,2]
[346201088,1734773474317,-500.0,0.0002,2]
[346201089,1734773474327,-500.0,0.0002,2]
[346201090,1734773474337,-1369.09,0.0002,2]
[346201091,1734773474347,-500.0,0.0002,2]
[346201092,1734773474357,-500.0,0.0002,2]
[346201093,1734773474366,-962.8,0.0002,2]
[346201094,1734773474376,-809.27,0.0002,2]
[346201095,1734773474385,-537.74221411,0.0002,2]
[346201096,1734773474394,-500.0,0.0002,2]
[346201097,1734773474404,-500.0,0.0002,2]
[346201098,1734773474413,-500.0,0.0002,2]
[346201099,1734773474423,-1375.81,0.0002,2]
[346201100,1734773474432,-500.0,0.0002,2]
[346201101,1734773474442,-541.05,0.0002,2]
[346201102,1734773474451,-890.86,0.0002,2]
[346201103,1734773474461,-500.0,0.0002,2]
[346201104,1734773474471,-500.0,0.0002,2]
[346201105,1734773474481,-500.0,0.0002,2]
[346201106,1734773474490,-500.0,0.0002,2]
[346201107,1734773474500,-500.0,0.0002,2]
[346201108,1734773474510,-500.0,0.0002,2]
[346201109,1734773474522,-962.15,0.0002,2]
[346201110,1734773474532,-500.0,0.0002,2]
[346201111,1734773474542,-500.0,0.0002,2]
[346201112,1734773474551,-500.0,0.0002,2]
[346201113,1734773474562,-1179.31,0.0002,2]
[346201114,1734773474572,-1057.42,0.0002,2]
[346201115,1734773474581,-500.0,0.0002,2]
[346201116,1734773474591,-808.61,0.0002,2]
[346201117,1734773474601,-1000.37,0.0002,2]
[346201118,1734773474611,-500.0,0.0002,2]
[346201119,1734773474621,-1022.01,0.0002,2]
[346201120,1734773474630,-500.0,0.0002,2]
[346201121,1734773474640,-1003.14,0.0002,2]
[346201122,1734773474649,-768.28,0.0002,2]
[346201123,1734773474658,-500.0,0.0002,2]
[346201124,1734773474668,-565.77776041,0.0002,2]
[346201125,1734773474677,-500.0,0.0002,2]
[346201126,1734773474687,-500.0,0.0002,2]
[346201127,1734773474696,-500.0,0.0002,2]
[346201128,1734773474770,-500.0,0.0002,2]
[346201129,1734773474783,-655.6,0.0002,2]
[346201130,1734773474793,-603.92,0.0002,2]
[346201131,1734773474803,-910.93,0.0002,2]
[346201132,1734773474813,-693.18,0.0002,2]
[346201133,1734773474823,-500.0,0.0002,2]
[346201134,1734773474834,-1405.78,0.0002,2]
[346201135,1734773474843,-500.0,0.0002,2]
[346201136,1734773474853,-1661.19,0.0002,2]
[346201137,1734773474863,-500.0,0.0002,2]
[346201138,1734773474872,-569.58,0.0002,2]
[346201139,1734773474882,-500.0,0.0002,2]
[346201140,1734773474891,-500.0,0.0002,2]
[346201141,1734773474900,-625.66,0.0002,2]
[346201142,1734773474910,-500.0,0.0002,2]
[346201143,1734773474919,-500.0,0.0002,2]
[346201144,1734773474929,-500.0,0.0002,2]
[346201145,1734773474938,-500.0,0.0002,2]
[346201146,1734773474947,-815.77,0.0002,2]
[346201147,1734773474956,-446.55688446,0.0002,2]
[346201148,1734773474965,-1379.55,0.0002,2]
[346201149,1734773474974,-888.28,0.0002,2]
[346201150,1734773474984,-7587.43,0.0002,2]
[346201151,1734773474993,-500.0,0.0002,2]
[346201152,1734773475003,-584.89,0.0002,2]
[346201153,1734773475012,-500.0,0.0002,2]
[346201154,1734773475026,-1621.1,0.0002,2]
[346201155,1734773475035,-500.0,0.0002,2]
[346201156,1734773475045,-500.0,0.0002,2]
[346201157,1734773475054,-500.0,0.0002,2]
[346201158,1734773475064,-635.11,0.0002,2]
[346201159,1734773475074,-519.97,0.0002,2]
[346201160,1734773475083,-500.0,0.0002,2]
[346201161,1734773475093,-594.39,0.0002,2]
[346201162,1734773475102,-500.0,0.0002,2]
[346201163,1734773475111,-981.0,0.0002,2]
[346201164,1734773475121,-540.89,0.0002,2]
[346201165,1734773475131,-500.0,0.0002,2]
[346201166,1734773475140,-649.72,0.0002,2]
[346201167,1734773475149,-500.0,0.0002,2]
[346201168,1734773475159,-500.0,0.0002,2]
[346201169,1734773475169,-500.0,0.0002,2]
[346201170,1734773475179,-1791.49,0.0002,2]
[346201171,1734773475189,-632.59,0.0002,2]
[346201172,1734773475198,-500.0,0.0002,2]
[346201173,1734773475208,-500.0,0.0002,2]
[346201174,1734773475218,-1983.68,0.0002,2]
[346201175,1734773475227,-500.0,0.0002,2]
[346201176,1734773475240,-500.0,0.0002,2]
[346201177,1734773475251,-500.0,0.0002,2]
[346201178,1734773475260,-500.0,0.0002,2]
[346201179,1734773475272,-500.0,0.0002,2]
[346201180,1734773475285,-500.0,0.0002,2]
[346201181,1734773475299,-500.0,0.0002,2]
[346201182,1734773475311,-500.0,0.0002,2]
[346201183,1734773475321,-500.0,0.0002,2]
[346201184,1734773475330,-500.0,0.0002,2]
[346201185,1734773475340,-500.0,0.0002,2]
[346201186,1734773475349,-2588.55,0.0002,2]
[346201187,1734773475359,-500.0,0.0002,2]
[346201188,1734773475368,-1085.44,0.0002,2]
[346201189,1734773475377,-500.0,0.0002,2]
[346201190,1734773475386,-885.13,0.0002,2]
[346201191,1734773475396,-557.35,0.0002,2]
[346201192,1734773475405,-1108.63,0.0002,2]
[346201193,1734773475415,-1207.07,0.0002,2]
[346201194,1734773475424,-500.0,0.0002,2]
[346201195,1734773475433,-500.0,0.0002,2]
[346201196,1734773475443,-500.0,0.0002,2]
[346201197,1734773475452,-500.0,0.0002,2]
[346201198,1734773475461,-3265.96,0.0002,2]
[346201199,1734773475471,-500.0,0.0002,2]
[346201200,1734773475481,-1587.64,0.0002,2]
[346201201,1734773475491,-877.61,0.0002,2]
[346201202,1734773475500,-828.22,0.0002,2]
[346201203,1734773475510,-500.0,0.0002,2]
[346201204,1734773475519,-500.0,0.0002,2]
[346201205,1734773475539,-500.0,0.0002,2]
[346201206,1734773475550,-365.16017332,0.0002,2]
[346201207,1734773475559,-741.63,0.0002,2]
[346201208,1734773475569,-168.04312008,0.0002,2]
[346201209,1734773475578,-500.0,0.0002,2]
[346201210,1734773475588,-828.21,0.0002,2]
[346201211,1734773475597,-570.11,0.0002,2]
[346201212,1734773475606,-610.54587093,0.0002,2]
[346201213,1734773475615,-500.0,0.0002,2]
[346201214,1734773475625,-500.0,0.0002,2]
[346201215,1734773475634,-500.0,0.0002,2]
[346201216,1734773475644,-500.0,0.0002,2]
[346201217,1734773475653,-541.73,0.0002,2]
[346201218,1734773475662,-500.0,0.0002,2]
[346201219,1734773475672,-500.0,0.0002,2]
[346201220,1734773475681,-500.0,0.0002,2]
[346201221,1734773475690,-932.89,0.0002,2]
[346201222,1734773475699,-1129.8,0.0002,2]
[346201223,1734773475708,-500.0,0.0002,2]
[346201224,1734773475718,-573.7,0.0002,2]
[346201225,1734773475727,-1331.05,0.0002,2]
[346201226,1734773475737,-500.0,0.0002,2]
[346201227,1734773475746,-1360.88,0.0002,2]
[346201228,1734773475755,-500.0,0.0002,2]
[346201229,1734773475765,-1044.55,0.0002,2]
[346201230,1734773475775,-2053.76,0.0002,2]
[346201231,1734773475784,-500.0,0.0002,2]
[346201232,1734773475793,-1900.92,0.0002,2]
[346201233,1734773475803,-500.0,0.0002,2]
[346201234,1734773475812,-500.0,0.0002,2]
[346201235,1734773475822,-500.0,0.0002,2]
[346201236,1734773475832,-2895.88,0.0002,2]
[346201237,1734773475842,-500.0,0.0002,2]
[346201238,1734773475852,-2461.23,0.0002,2]
[346201239,1734773475861,-632.84,0.0002,2]
[346201240,1734773475871,-2694.25,0.0002,2]
[346201241,1734773475881,-500.0,0.0002,2]
[346201242,1734773475891,-1168.89,0.0002,2]
[346201243,1734773475901,-710.98,0.0002,2]
[346201244,1734773475910,-500.0,0.0002,2]
[346201245,1734773475920,-729.31,0.0002,2]
[346201246,1734773475930,-1694.89,0.0002,2]
[346201247,1734773475939,-682.43,0.0002,2]
[346201248,1734773475949,-1187.51,0.0002,2]
[346201249,1734773475958,-1237.16,0.0002,2]
[346201250,1734773475968,-708.66,0.0002,2]
[346201251,1734773475977,-1021.5,0.0002,2]
[346201252,1734773475987,-545.43,0.0002,2]
[346201253,1734773475996,-500.0,0.0002,2]
[346201254,1734773476006,-500.0,0.0002,2]
[346201255,1734773476015,-621.25,0.0002,2]
[346201256,1734773476037,-500.0,0.0002,2]
[346201257,1734773476047,-693.27,0.0002,2]
[346201258,1734773476057,-500.0,0.0002,2]
[346201259,1734773476066,-2780.15,0.0002,2]
[346201260,1734773476076,-500.0,0.0002,2]
[346201261,1734773476085,-784.83,0.0002,2]
[346201262,1734773476094,-500.0,0.0002,2]
[346201263,1734773476104,-3200.14,0.0002,2]
[346201264,1734773476113,-500.0,0.0002,2]
[346201265,1734773476122,-3460.69,0.0002,2]
[346201266,1734773476131,-500.0,0.0002,2]
[346201267,1734773476141,-500.0,0.0002,2]
[346201268,1734773476150,-2823.93,0.0002,2]
[346201269,1734773476159,-1842.46,0.0002,2]
[346201270,1734773476169,-790.83,0.0002,2]
[346201271,1734773476178,-280.97743686,0.0002,2]
[346201272,1734773476188,-1567.9,0.0002,2]
[346201273,1734773476197,-871.54,0.0002,2]
[346201274,1734773476206,-500.0,0.0002,2]
[346201275,1734773476216,-1851.68,0.0002,2]
[346201276,1734773476226,-1465.88,0.0002,2]
[346201277,1734773476238,-794.89,0.0002,2]
[346201278,1734773476247,-1367.48,0.0002,2]
[346201279,1734773476256,-3584.85,0.0002,2]
[346201280,1734773476266,-500.0,0.0002,2]
[346201281,1734773476276,-500.0,0.0002,2]
[346201282,1734773476285,-500.0,0.0002,2]
[346201283,1734773476295,-500.0,0.0002,2]
[346201284,1734773476305,-2813.95,0.0002,2]
[346201285,1734773476315,-506.82,0.0002,2]
[346201286,1734773476325,-572.38,0.0002,2]
[346201287,1734773476334,-500.0,0.0002,2]
[346201288,1734773476344,-500.0,0.0002,2]
[346201289,1734773476354,-707.8,0.0002,2]
[346201290,1734773476363,-3748.8,0.0002,2]
[346201291,1734773476373,-500.0,0.0002,2]
[346201292,1734773476382,-625.29,0.0002,2]
[346201293,1734773476392,-900.78,0.0002,2]
[346201294,1734773476402,-500.0,0.0002,2]
[346201295,1734773476411,-500.0,0.0002,2]
[346201296,1734773476421,-1097.85,0.0002,2]
[346201297,1734773476431,-2789.81,0.0002,2]
[346201298,1734773476441,-756.9,0.0002,2]
[346201299,1734773476451,-500.0,0.0002,2]
[346201300,1734773476462,-930.55,0.0002,2]
[346201301,1734773476471,-500.0,0.0002,2]
[346201302,1734773476482,-500.0,0.0002,2]
[346201303,1734773476491,-500.0,0.0002,2]
[346201304,1734773476501,-909.54,0.0002,2]
[346201305,1734773476510,-500.0,0.0002,2]
[346201306,1734773476521,-1694.4,0.0002,2]
[346201307,1734773476544,-500.0,0.0002,2]
[346201308,1734773476554,-608.31,0.0002,2]
[346201309,1734773476563,-500.0,0.0002,2]
[346201310,1734773476572,-500.0,0.0002,2]
[346201311,1734773476582,-911.05,0.0002,2]
[346201312,1734773476591,-724.3,0.0002,2]
[346201313,1734773476601,-500.0,0.0002,2]
[346201314,1734773476610,-2330.29,0.0002,2]
[346201315,1734773476620,-3781.43,0.0002,2]
[346201316,1734773476630,-1261.37,0.0002,2]
[346201317,1734773476640,-500.0,0.0002,2]
[346201318,1734773476650,-502.07511321,0.0002,2]
[346201319,1734773476659,-500.0,0.0002,2]
[346201320,1734773476669,-2082.75,0.0002,2]
[346201321,1734773476679,-991.07,0.0002,2]
[346201322,1734773476688,-628.82421717,0.0002,2]
[346201323,1734773476697,-500.0,0.0002,2]
[346201324,1734773476707,-500.0,0.0002,2]
[346201325,1734773476717,-521.86545605,0.0002,2]
[346201326,1734773476726,-610.69,0.0002,2]
[346201327,1734773476736,-500.0,0.0002,2]
[346201328,1734773476747,-500.0,0.0002,2]
[346201329,1734773476757,-9686.77,0.0002,2]
[346201330,1734773476766,-1882.98,0.0002,2]
[346201331,1734773476776,-6034.06,0.0002,2]
[346201332,1734773476786,-500.0,0.0002,2]
[346201333,1734773476796,-958.49,0.0002,2]
[346201334,1734773476806,-2607.23,0.0002,2]
[346201335,1734773476815,-500.0,0.0002,2]
[346201336,1734773476825,-500.0,0.0002,2]
[346201337,1734773476835,-500.0,0.0002,2]
[346201338,1734773476845,-1501.37,0.0002,2]
[346201339,1734773476856,-500.0,0.0002,2]
[346201340,1734773476866,-500.0,0.0002,2]
[346201341,1734773476876,-1764.07,0.0002,2]
[346201342,1734773476886,-5371.31,0.0002,2]
[346201343,1734773476896,-1482.95,0.0002,2]
[346201344,1734773476906,-500.0,0.0002,2]
[346201345,1734773476915,-1579.5,0.0002,2]
[346201346,1734773476926,-849.58,0.0002,2]
[346201347,1734773476936,-500.0,0.0002,2]
[346201348,1734773476947,-500.0,0.0002,2]
[346201349,1734773476957,-764.29,0.0002,2]
[346201350,1734773476967,-500.0,0.0002,2]
[346201351,1734773476976,-6231.42,0.0002,2]
[346201352,1734773476986,-500.0,0.0002,2]
[346201353,1734773476996,-2094.42,0.0002,2]